[Event "Teplice Open 2022"]
[Site "Teplice"]
[Date "2022.06.22"]
[Round "5.7"]
[White "Sokolovsky, Yahli"]
[Black "Santiago, Yago De Moura"]
[Result "1/2-1/2"]
[ECO "B11"]
[WhiteElo "2369"]
[BlackElo "2498"]
[Annotator "TA"]
[PlyCount "84"]
[EventDate "2022.06.18"]
[EventType "swiss"]
[EventCountry "CZE"]
[SourceTitle "playchess.com"]
[Source "ChessBase"]
[SourceQuality "1"]
[TimeControl "40/5400+30:1800+30"]

{[%evp 9,84,0,0,0,0,-3,-18,-15,-12,-10,4,6,0,20,14,27,20,20,20,26,18,18,14,11,4,-22,-15,-36,-31,-31,-14,-25,-21,-45,-38,-34,-36,-41,0,0,0,0,0,0,0,0,0,0,0,0,0,0,0,0,0,0,0,0,0,0,43,42,43,38,36,29,45,0,28,18,20,25,22,15,19,11,19]} 1. e4 {[%emt 0:00:04]} c6 {[%emt 0:00:14]} 2. Nc3 {[%emt 0:00:15]} d5 {[%emt 0:00:14]} 3. Nf3 {[%emt 0:00:09]} Bg4 {[%emt 0:01:09]} 4. d4 {[%emt 0:00:16]} Nf6 {[%emt 0:04:23]} 5. e5 {[%emt 0:00:34]} Nfd7 $1 {[%emt 0:00:17]} 6. Be2 {[%emt 0:00:37] B11: Caro-Kann: Two Knights Variation.} e6 {[%emt 0:02:48]} 7. O-O {[%emt 0:00:15]} c5 {[%emt 0:00:26]} 8. Bg5 {[%emt 0:00:39]} Qc8 {[%emt 0:00:10]} 9. Nb5 {[%emt 0:01:15] [#]} Bxf3 $146 {[%emt 0:09:33]} ({Predecessor:} 9... Nc6 10. c3 a6 11. Nd6+ Bxd6 12. exd6 O-O 13. Ne5 Bxe2 14. Qxe2 cxd4 15. Nxc6 Qxc6 {½-½ (60) Munoz Pantoja,M (2473)-Agrest,E (2593) Tallinn 2016}) 10. Bxf3 {[%emt 0:00:06]} cxd4 {[%emt 0:00:06]} 11. Nxd4 {[%emt 0:12:26][%cal Of3d5]} ({Of course not} 11. Qxd4 Nc6 12. Qf4 Ndxe5 $15) 11... Nc6 {[%emt 0:02:22]} 12. c4 {[%emt 0:12:59]} Nxd4 {[%emt 0:09:37]} 13. Qxd4 {[%emt 0:00:05]} Bc5 {[%emt 0:00:34]} 14. Qc3 {[%emt 0:03:15]} dxc4 {[%emt 0:02:35]} 15. Rac1 {[%emt 0:00:39]} h6 {[%emt 0:06:21]} 16. Bh4 {[%emt 0:05:53] A strong pair of Bishops.} Nb6 {[%emt 0:01:19][%cal Bd7b6,Bb6a4,Ba4c5][%mdl 32]} 17. Rfd1 {[%emt 0:09:19]} Qc7 {[%emt 0:02:46] Prevents Rd8+.} 18. b3 {[%emt 0:02:49]} O-O {[%emt 0:04:17]} 19. bxc4 {[%emt 0:00:29]} Rfc8 {[%emt 0:03:45]} 20. Be4 $1 {[%emt 0:05:56]} Be7 {[%emt 0:01:42]} 21. Bg3 {[%emt 0:11:34]} Na4 {[%emt 0:05:36]} 22. Qe3 {[%emt 0:07:38]} Nc5 {[%emt 0:01:34]} 23. Bc2 {[%emt 0:01:27]} Bg5 {[%emt 0:05:23]} 24. f4 {[%emt 0:01:16]} Be7 {[%emt 0:00:07]} 25. Bf2 {[%emt 0:05:14]} Rd8 {[%emt 0:07:22]} 26. h4 {[%emt 0:05:06]} Nd7 {[%emt 0:03:54]} 27. Qe4 {[%emt 0:04:25] [#] White threatens Qh7+ and mate.} Nf8 {[%emt 0:00:29] Against Qh7+} 28. Kh2 {[%emt 0:01:42]} b6 {[%emt 0:01:33]} 29. h5 {[%emt 0:00:56]} Rac8 {[%emt 0:00:34]} 30. Rxd8 {[%emt 0:01:02]} Rxd8 {[%emt 0:00:12]} 31. Rd1 {[%emt 0:00:21]} Rxd1 {[%emt 0:01:40]} 32. Bxd1 {[%emt 0:00:10]} Bc5 {[%emt 0:00:11]} 33. Be1 {[%emt 0:01:59]} Qd7 {[%emt 0:12:11]} 34. Bc2 {[%emt 0:00:15]} b5 {[%emt 0:00:07]} 35. cxb5 {[%emt 0:03:32]} Qxb5 {[%emt 0:00:03]} 36. Qd3 {[%emt 0:00:47]} Qb6 {[%emt 0:00:54]} 37. Qb3 {[%emt 0:01:13]} Qc6 {[%emt 0:01:45]} 38. Qd3 {[%emt 0:00:12]} Bb6 {[%emt 0:00:40]} 39. Bb4 {[%emt 0:00:40]} Bc5 {[%emt 0:04:36]} 40. Qc3 {[%emt 0:02:56]} Nd7 41. Bxc5 Qxc5 42. Qd3 {[%emt 0:00:01]} Nf8 {[%emt 0:00:08] Weighted Error Value: White=0.04 (flawless) /Black=0.04 (flawless)} 1/2-1/2

[Event "Teplice Open 2022"]
[Site "Teplice"]
[Date "2022.06.22"]
[Round "5.8"]
[White "Sankalp Gupta"]
[Black "Wagh Suyog"]
[Result "1-0"]
[ECO "B30"]
[WhiteElo "2505"]
[BlackElo "2352"]
[Annotator "TA"]
[PlyCount "149"]
[EventDate "2022.06.18"]
[EventType "swiss"]
[EventCountry "CZE"]
[SourceTitle "playchess.com"]
[Source "ChessBase"]
[SourceQuality "1"]
[TimeControl "40/5400+30:1800+30"]

{[%evp 15,149,31,29,26,21,22,36,30,41,30,37,28,42,8,36,46,59,45,68,68,85,62,61,68,110,113,118,107,102,86,76,79,76,83,108,125,175,169,191,179,144,83,83,83,83,83,84,67,83,39,55,0,64,51,62,65,125,77,107,94,100,80,116,55,55,60,58,64,120,64,102,95,95,91,91,97,89,64,66,66,77,51,88,21,51,51,51,51,51,51,51,51,51,58,58,58,58,58,58,58,58,37,86,79,79,86,86,86,5065,0,58,37,58,0,0,0,60,62,63,63,70,1,63,0,0,0,0,0,0,0,0,-5057,-5157,-1093,0,0]} 1. e4 {[%emt 0:05:31]} c5 {[%emt 0:00:01]} 2. Nc3 {[%emt 0:03:04]} Nc6 {[%emt 0:05:36]} 3. Nf3 {[%emt 0:02:21]} e5 {[%emt 0:05:16]} 4. Bc4 {[%emt 0:00:03]} Be7 {[%emt 0:07:10]} 5. d3 {[%emt 0:00:58]} d6 {[%emt 0:02:38]} 6. Nd2 {[%emt 0:04:56]} Nf6 {[%emt 0:03:27]} 7. Nf1 {[%emt 0:00:00]} O-O 8. Ne3 {[%emt 0:07:09]} Be6 {[%emt 0:12:56]} 9. a3 {[%emt 0:03:21][%cal Ba2a3,Ba3a4][%mdl 32] B30: Sicilian: 2...Nc6 3 Bb5, lines without ...g6.} Rb8 {[%emt 0:24:35]} 10. O-O {[%emt 0:03:46]} Nd4 {[%emt 0:04:20] [#]} 11. a4 $146 {[%emt 0:14:27] White is slightly better.} ({Predecessor:} 11. Ncd5 b5 12. Ba2 Qd7 13. g3 Bxd5 14. Nxd5 Nxd5 15. Bxd5 Kh8 16. f4 exf4 17. gxf4 {1-0 (45) Li,R (2318)-Ning,C (2287) Suzhou 2001}) 11... Kh8 {[%emt 0:02:42]} 12. Bd2 {[%emt 0:01:43]} b6 {[%emt 0:02:57]} 13. Kh1 {[%emt 0:14:54]} Kg8 {[%emt 0:07:33]} 14. g4 {[%emt 0:04:22]} Bxc4 {[%emt 0:00:37]} 15. dxc4 {[%emt 0:00:00]} Nd7 {[%emt 0:06:31]} 16. Ncd5 {[%emt 0:00:00]} (16. Nf5 {looks sharper.} Bg5 17. Bxg5 Qxg5 18. Nd5) 16... Re8 {[%emt 0:03:19]} 17. c3 {[%emt 0:01:42]} Ne6 {[%emt 0:00:36]} 18. Nxe7+ {[%emt 0:04:55]} Qxe7 {[%emt 0:01:40]} 19. Nf5 {[%emt 0:01:03]} Qf6 {[%emt 0:02:35]} 20. g5 $36 {[%emt 0:03:13][%mdl 2048] Keeping Black busy.} Qd8 {[%emt 0:05:03]} (20... Nxg5 $2 21. Bxg5 Qe6 22. Rg1 $18) 21. Nxd6 {[%emt 0:00:38]} Rf8 {[%emt 0:00:01]} 22. Rg1 {[%emt 0:00:53]} g6 {[%emt 0:00:29]} 23. Be3 $1 {[%emt 0:00:25] 0x0.00166d677debdp-1022s more active pieces.} Qe7 {[%emt 0:00:49]} 24. Nb5 $1 {[%emt 0:02:24]} Rb7 {[%emt 0:00:35]} 25. Qd6 {[%emt 0:04:59]} Re8 {[%emt 0:00:39]} (25... Nb8 $16) 26. Rad1 $18 {[%emt 0:00:44]} a6 {[%emt 0:00:36]} 27. Qxe7 {[%emt 0:03:51]} Rxe7 {[%emt 0:00:01]} 28. Na3 {[%emt 0:00:01]} (28. Nd6 $142 Rb8 29. Rd5) 28... f5 $16 {[%emt 0:00:58]} 29. gxf6 {[%emt 0:01:52]} Nxf6 {[%emt 0:00:02]} 30. f3 {[%emt 0:00:01]} Red7 {[%emt 0:00:24]} 31. Nc2 {[%emt 0:00:57]} Kf7 {[%emt 0:00:30]} 32. Bc1 {[%emt 0:00:48]} Nf4 $1 {[%emt 0:01:20]} 33. Be3 {[%emt 0:09:14]} (33. Ne3 $14) 33... N6h5 {[%emt 0:00:32] Pair of Knights!} ({Black should try} 33... Ne6 $1 $11) 34. Rgf1 $14 {[%emt 0:01:06]} Nd3 {[%emt 0:00:21]} 35. Rb1 {[%emt 0:00:19]} Rbc7 {[%emt 0:00:37]} (35... Ke6 $14) 36. Rfd1 {[%emt 0:00:41]} (36. Bg1 $142) 36... Ke6 {[%emt 0:00:30]} 37. Kg1 {[%emt 0:00:36]} Nhf4 {[%emt 0:00:25]} 38. Rd2 {[%emt 0:00:14]} Rd6 {[%emt 0:00:37]} 39. Ne1 {[%emt 0:00:46]} (39. b4 $16) 39... Rcd7 {[%emt 0:00:28]} 40. Nxd3 {[%emt 0:01:31]} Rxd3 {[%emt 0:00:32]} 41. Rbd1 {[%emt 0:05:08]} Ne2+ {[%emt 0:30:05]} (41... Rxd2 $14 42. Rxd2 Rxd2 43. Bxd2 Kf6) 42. Kf1 {[%emt 0:01:55]} (42. Kg2 $1 $16 Rxd2 43. Rxd2 Rxd2 44. Bxd2) 42... Nc1 {[%emt 0:00:12]} 43. Rxd3 $1 {[%emt 0:01:28]} Rxd3 {[%emt 0:01:09]} 44. Rxd3 Nxd3 $16 {[%emt 0:00:01][%mdl 4096] Endgame KB-KN} 45. b3 {[%emt 0:04:17]} Kf6 {[%emt 0:00:59]} 46. Bd2 {[%emt 0:04:36]} Nf4 {[%emt 0:00:34]} 47. Kf2 {[%emt 0:02:03]} Ne6 {[%emt 0:00:26]} 48. h4 {[%emt 0:02:30]} Kf7 {[%emt 0:00:32]} 49. Ke3 {[%emt 0:02:54]} (49. Bh6 $16) 49... Ke7 {[%emt 0:00:16]} 50. Be1 {[%emt 0:00:29]} Nf8 {[%emt 0:00:43]} 51. Bg3 {[%emt 0:02:27]} Ke6 {[%emt 0:00:19]} 52. f4 {[%emt 0:00:14]} Nd7 {[%emt 0:00:34]} 53. fxe5 {[%emt 0:00:55]} Nxe5 {[%emt 0:00:01]} 54. Bf4 {[%emt 0:00:01]} Ng4+ {[%emt 0:00:42]} 55. Kf3 {[%emt 0:02:21]} Ne5+ {[%emt 0:00:17]} 56. Ke2 {[%emt 0:00:01]} Kd6 {[%emt 0:00:55]} 57. Bg3 {[%emt 0:01:48]} Ke6 {[%emt 0:00:09]} 58. Ke3 {[%emt 0:00:01]} Ng4+ {[%emt 0:00:40]} (58... h6 $14) 59. Kf4 {[%emt 0:02:30]} Ne5 {[%emt 0:00:01]} 60. Kg5 $1 {[%emt 0:00:46]} Nf7+ {[%emt 0:00:02]} 61. Kg4 $1 {[%emt 0:00:05] Black must now prevent Bc7.} Ne5+ $2 {[%emt 0:01:48][%mdl 8192]} (61... Kd7 $16) 62. Kf4 $2 {[%emt 0:00:16]} ({White must play} 62. Bxe5 $18 Kxe5 63. Kg5) 62... Nf7 {[%emt 0:00:09]} (62... Kf6 $11) 63. Bf2 {[%emt 0:01:30][%cal Oa4a5]} (63. Kf3 $5 {[%cal Rg3c7]}) 63... Ne5 {[%emt 0:00:16]} 64. Kg5 {[%emt 0:01:00]} ({White should play} 64. Be3 $1 $14) 64... Nf7+ {[%emt 0:00:33]} 65. Kf4 {[%emt 0:00:01]} (65. Kg4 $11) 65... Ne5 $14 {[%emt 0:00:09]} 66. Be3 $1 {[%emt 0:00:25]} Kf6 {[%emt 0:01:28]} 67. Kg3 $1 {[%emt 0:00:01]} Ke6 {[%emt 0:00:16]} 68. Bg5 {[%emt 0:01:30]} (68. a5 $14 bxa5 69. Bxc5) 68... Nf7 {[%emt 0:00:43]} (68... Nc6 $1 $11) 69. Kf4 {[%emt 0:02:29]} (69. Kf2 $14) 69... h6 $11 {[%emt 0:00:30]} 70. Bxh6 $1 {[%emt 0:00:01]} Nxh6 {[%emt 0:00:04]} 71. Kg5 {[%emt 0:00:02][%csl LRg6,LRh6]} Ng8 {[%emt 0:00:52] aiming for ...a5.} 72. Kxg6 {[%emt 0:00:15]} Nf6 {[%emt 0:00:26] Threatens to win with ...a5.} 73. e5 $2 {[%emt 0:01:15][%mdl 8192]} (73. h5 Nxh5 74. Kg5 (74. Kxh5 $2 Ke5 $19) 74... Ke5 $1 75. Kxh5 Kxe4 $19) (73. b4 $11) 73... Kxe5 $19 {[%emt 0:00:34]} 74. Kf7 {[%emt 0:00:01] [#]} Ng4 $2 {[%emt 0:00:31]} (74... a5 $1 $19 75. Kg6 Ke6) 75. Ke7 {[%emt 0:00:17][%mdl 32768] What a fight!  Weighted Error Value: White=0.12 (very precise) /Black=0.15 (very precise) . Sensor Board Error (Ke4/e5)?} 1-0

[Event "Teplice Open 2022"]
[Site "Teplice"]
[Date "2022.06.22"]
[Round "5.9"]
[White "Hollan, Martin"]
[Black "Narayanan.S.L"]
[Result "0-1"]
[ECO "B30"]
[WhiteElo "2391"]
[BlackElo "2662"]
[Annotator "TA"]
[PlyCount "124"]
[EventDate "2022.06.18"]
[EventType "swiss"]
[EventCountry "CZE"]
[SourceTitle "playchess.com"]
[Source "ChessBase"]
[SourceQuality "1"]
[TimeControl "40/5400+30:1800+30"]

{[%evp 9,124,0,-5,-6,31,10,21,22,14,8,4,-9,-7,-28,-17,-29,-22,-18,-20,-20,-24,-79,-18,-20,-16,-21,-34,-150,-142,-177,-129,-176,-178,-165,-165,-165,-165,-164,-165,-181,-177,-223,-220,-205,-194,-233,-227,-272,-210,-204,-156,-150,-152,-153,-146,-193,-182,-279,-212,-271,-257,-256,-258,-268,-260,-268,-261,-271,-283,-297,-295,-470,-457,-434,-224,-227,-208,-275,-274,-266,-270,-721,-658,-789,-814,-807,-784,-700,-712,-708,-654,-628,-573,-2325,-2397,-1559,-1684,-1933,-1692,-6514,-6275,-29969,-29968,-29975,-29973,-29983,-29984,-29984,-29985,-29981,-29982,-29994,-29980,-29980,-29981,-29980,-29980]} 1. e4 {[%emt 0:07:15]} c5 {[%emt 0:07:28]} 2. Nf3 {[%emt 0:00:00]} Nc6 {[%emt 0:00:06]} 3. Bb5 {[%emt 0:00:00]} e6 {[%emt 0:00:07]} 4. Bxc6 {[%emt 0:00:00]} bxc6 {[%emt 0:00:07]} 5. O-O {[%emt 0:00:00]} Ne7 {[%emt 0:01:25]} 6. b3 {[%emt 0:00:00] B30: Sicilian: 2...Nc6 3 Bb5, lines without ...g6.} f6 {[%emt 0:05:48]} 7. Ba3 {[%emt 0:00:00]} Ng6 $5 {[%emt 0:03:38][%mdl 4] Exploring less charted territory.} 8. d4 {[%emt 0:00:00] The position is equal.} cxd4 {[%emt 0:01:46] ...Bxa3 is the strong threat.} 9. Bxf8 {[%emt 0:00:00] [#]} Rxf8 $146 {[%emt 0:00:13]} ({Predecessor:} 9... Kxf8 10. Nxd4 Qc7 11. c4 Kf7 12. Nc3 Rd8 13. Rc1 d6 14. Qd2 e5 15. Nde2 Be6 {½-½ (50) Peptan,C (2415)-Cmilyte,V (2467) Plovdiv 2008}) 10. Qxd4 {[%emt 0:00:00]} e5 {[%emt 0:00:39]} 11. Qd2 {[%emt 0:00:00]} d5 {[%emt 0:02:09]} 12. Nc3 {[%emt 0:08:27][%cal Re4d5]} Bg4 {[%emt 0:16:45]} 13. exd5 {[%emt 0:14:22]} Bxf3 {[%emt 0:00:12]} 14. gxf3 {[%emt 0:00:06]} Qd7 {[%emt 0:00:32]} 15. Qd3 {[%emt 0:00:51]} (15. Kh1 $1 $11) 15... Nf4 {[%emt 0:12:18]} ({Black should try} 15... Qh3 $1 $17 {( -> ...Nh4)} 16. f4 (16. dxc6 $2 Rd8 $19) 16... Qxd3 17. cxd3 Nxf4 18. dxc6 O-O-O) 16. dxc6 $11 {[%emt 0:01:37]} Qxc6 {[%emt 0:00:05]} 17. Qb5 {[%emt 0:06:52]} Rc8 $40 {[%emt 0:01:29][%cal Ba8c8,Bc8c7,Bc7b7][%mdl 1184] Black has compensation. Black attacks.} 18. Kh1 {[%emt 0:32:49]} (18. Qxc6+ $15 Rxc6 19. Nb5) 18... Ke7 $1 $17 {[%emt 0:05:10][%csl LRc3,LRf3] Really sharp! Black is more active.} 19. Qb4+ {[%emt 0:04:08]} Qc5 {[%emt 0:02:40]} (19... Kf7 $19 20. Ne4 Kg8) 20. Qb7+ {[%emt 0:00:33]} (20. Qxc5+ $17 Rxc5 21. Nd1) 20... Rc7 $19 {[%emt 0:01:20]} 21. Ne4 {[%emt 0:00:56]} Qa5 {[%emt 0:05:53]} ({Inferior is} 21... Rxb7 22. Nxc5 Rc7 23. Nd3 $15 (23. b4 Ne6 $15)) 22. b4 {[%emt 0:01:17]} Rxb7 {[%emt 0:00:04]} 23. bxa5 {[%emt 0:00:05]} Rc8 {[%emt 0:00:06]} 24. Rab1 {[%emt 0:01:57] [#]} Rd7 {[%emt 0:02:29]} (24... Rxb1 25. Rxb1 Ke6 26. Rb7 $17) 25. Rb2 {[%emt 0:05:52]} (25. Rfc1 $142) 25... f5 {[%emt 0:01:32]} 26. Ng3 {[%emt 0:00:07]} Kf6 {[%emt 0:00:47]} 27. h4 {[%emt 0:03:11]} g6 {[%emt 0:06:28]} 28. a6 {[%emt 0:01:00]} Rc6 {[%emt 0:03:37]} 29. Rb7 {[%emt 0:00:09]} Rxb7 {[%emt 0:00:11][%mdl 64] Remove Defender} 30. axb7 {[%emt 0:00:05][%mdl 4096] Endgame KRN-KRN} Rb6 {[%emt 0:00:02]} 31. Rd1 {[%emt 0:00:56][%cal Od1d6] [#] Hoping for Rd6+!} Ke6 {[%emt 0:02:14] Against Rd6+} 32. h5 {[%emt 0:07:13]} (32. Rd8 $17 {was necessary.} Rxb7 33. Re8+ Kd5 34. Rd8+ Kc6 35. Rc8+ Kd6 36. Rd8+ Kc7 37. Ra8) 32... Rxb7 {[%emt 0:00:24]} ({Not} 32... gxh5 33. Rd8 Rxb7 34. Re8+ Kf6 35. Rf8+ Kg6 36. Rg8+ Kf7 37. Ra8 $17) 33. h6 {[%emt 0:00:35]} (33. hxg6 $142 hxg6 34. Nf1) 33... Kf6 {[%emt 0:02:24]} 34. c4 {[%emt 0:00:31]} Rc7 {[%emt 0:00:25]} 35. Rc1 {[%emt 0:03:18]} Kg5 {[%emt 0:00:28]} 36. Nf1 {[%emt 0:00:31]} Kxh6 {[%emt 0:01:01]} 37. Ne3 {[%emt 0:00:16]} Kg5 {[%emt 0:00:14]} 38. Rd1 {[%emt 0:00:53]} h5 {[%emt 0:01:27][%cal Bh7h5,Bh5h4][%mdl 32]} 39. Rd6 {[%emt 0:01:33]} h4 {[%emt 0:00:10]} 40. Ra6 {[%emt 0:01:11]} (40. Kh2 $142) 40... Rb7 {[%emt 0:05:56] White must now prevent ...Rb1+.} 41. c5 {[%emt 0:06:02]} Rc7 {[%emt 0:00:57]} (41... Rb1+ $142 42. Kh2 Rb5 43. Rxa7 Rxc5) 42. c6 {[%emt 0:00:33]} Kf6 {[%emt 0:01:02]} 43. Nc4 {[%emt 0:01:52]} Ke6 {[%emt 0:02:53] Inhibits Nd6.} 44. Na3 {[%emt 0:01:03]} Kd5 {[%emt 0:00:16]} 45. Nb5 $2 {[%emt 0:00:05]} (45. Nc2) 45... Rxc6 {[%emt 0:00:05]} 46. Rxc6 {[%emt 0:00:04]} Kxc6 {[%emt 0:00:03]} 47. Nxa7+ {[%emt 0:00:05] KN-KN} Kb6 {[%emt 0:03:21]} 48. Nc8+ {[%emt 0:00:06]} Kc7 {[%emt 0:00:02]} 49. Na7 {[%emt 0:03:01]} Nd3 {[%emt 0:00:35]} 50. Kg1 {[%emt 0:00:39]} Ne1 {[%emt 0:00:31]} 51. f4 {[%emt 0:00:06]} exf4 {[%emt 0:00:59] Strongly threatening ...Nf3+.} 52. Nb5+ {[%emt 0:00:24]} Kc6 {[%emt 0:00:36]} 53. Nd4+ {[%emt 0:00:52]} Kd5 {[%emt 0:00:29]} 54. Ne2 {[%emt 0:00:10]} g5 {[%emt 0:00:45][%cal Bg6g5,Bg5g4,Bg4g3][%mdl 32]} 55. a4 {[%emt 0:00:13]} Nf3+ {[%emt 0:00:14] Black mates.} 56. Kg2 {[%emt 0:01:28]} Nd4 {[%emt 0:00:06]} 57. Nc3+ {[%emt 0:02:08]} Kc4 {[%emt 0:00:18]} 58. Nd1 {[%emt 0:00:32]} g4 {[%emt 0:00:21]} 59. a5 {[%emt 0:00:12]} h3+ {[%emt 0:00:14]} 60. Kh2 {[%emt 0:00:56]} Kb3 {[%emt 0:00:20]} 61. a6 {[%emt 0:00:27]} Nc6 {[%emt 0:00:34]} 62. f3 {[%emt 0:00:10]} g3+ {[%emt 0:00:08] Weighted Error Value: White=0.79/Black=0.10 (very precise)} 0-1

[Event "Teplice Open 2022"]
[Site "Teplice"]
[Date "2022.06.22"]
[Round "5.10"]
[White "Berkes, Ferenc"]
[Black "Rubes, Jan"]
[Result "1-0"]
[ECO "D37"]
[WhiteElo "2654"]
[BlackElo "2386"]
[Annotator "TA"]
[PlyCount "89"]
[EventDate "2022.06.18"]
[EventType "swiss"]
[EventCountry "CZE"]
[SourceTitle "playchess.com"]
[Source "ChessBase"]
[SourceQuality "1"]
[TimeControl "40/5400+30:1800+30"]

{[%evp 20,89,33,18,25,0,76,66,62,33,38,54,122,134,130,85,83,87,77,79,71,68,66,45,106,110,110,129,127,127,123,125,125,116,125,124,202,116,122,124,107,127,146,142,154,144,333,325,354,357,397,420,491,482,528,569,541,476,640,638,635,585,642,621,1039,1026,977,954,12847,805,6420,6404]} 1. d4 {[%emt 0:00:03]} d5 {[%emt 0:00:22]} 2. c4 {[%emt 0:00:07]} e6 {[%emt 0:00:12]} 3. Nf3 {[%emt 0:00:08]} Nf6 {[%emt 0:00:44]} 4. Nc3 {[%emt 0:00:08]} Be7 {[%emt 0:00:35]} 5. Bf4 {[%emt 0:00:19]} O-O {[%emt 0:00:11]} 6. e3 {[%emt 0:00:05]} c5 {[%emt 0:00:14]} 7. dxc5 {[%emt 0:00:29]} Bxc5 {[%emt 0:00:06]} 8. a3 {[%emt 0:01:08]} Nc6 {[%emt 0:00:29]} 9. Qc2 {[%emt 0:00:07]} Qa5 {[%emt 0:00:39]} 10. Nd2 {[%emt 0:04:38]} Be7 {[%emt 0:00:25]} 11. Bg3 {[%emt 0:04:40]} a6 {[%emt 0:10:13] D37: Queen's Gambit Declined: 5 Bf4.} 12. Rd1 {[%emt 0:02:47]} h6 {[%emt 0:13:19]} (12... b5 $11) 13. Be2 $16 {[%emt 0:01:37] [#]} Qb6 $146 {[%emt 0:10:37] White is slightly better.} ({Predecessor:} 13... Bd7 14. O-O Rac8 15. Bf3 Na7 16. Qb3 Bc6 17. Qa2 Qb6 18. b4 a5 19. b5 Be8 {1-0 (43) Bwalya,G (2305)-Klaasen,C (2186) Cape Town 2015}) 14. Na4 {[%emt 0:10:41]} Qa7 {[%emt 0:05:09][%cal Ob7b5]} 15. c5 {[%emt 0:00:31]} e5 {[%emt 0:07:15]} ({Black should try} 15... Bd8 $14) 16. Nb6 {[%emt 0:02:19]} Rb8 {[%emt 0:00:23]} 17. b4 {[%emt 0:09:01]} Bd8 {[%emt 0:11:14]} 18. Nf3 {[%emt 0:01:07][%csl LRd5,LRe5] 0x0.00207a317ff4dp-1022s more active pieces. The black rooks are badly placed.} Bxb6 {[%emt 0:02:56]} 19. cxb6 {[%emt 0:00:06]} Qxb6 {[%emt 0:00:03]} 20. Nxe5 {[%emt 0:00:11]} Ra8 {[%emt 0:00:59]} 21. O-O {[%emt 0:00:25]} Ne4 {[%emt 0:01:29]} (21... Be6 $14) 22. Rxd5 {[%emt 0:03:12]} (22. Nc4 {looks sharper.} Qd8 23. Bd6 Nxd6 24. Rxd5 Bf5 25. Qc1) 22... Nxg3 {[%emt 0:00:14]} 23. hxg3 {[%emt 0:00:08] aiming for Rd6.} Nxe5 {[%emt 0:00:13]} 24. Rxe5 {[%emt 0:00:06]} Be6 {[%emt 0:00:06]} 25. Rc1 {[%emt 0:19:25]} Rac8 {[%emt 0:17:26]} 26. Rc5 {[%emt 0:00:28]} Rxc5 {[%emt 0:02:29]} 27. bxc5 {[%emt 0:03:45]} Qa5 {[%emt 0:01:13]} (27... Qc6 $16 {keeps fighting.} 28. Bf3 Bd5) 28. Qb2 {[%emt 0:08:12]} (28. Bf3 $18) 28... Rc8 {[%emt 0:02:12]} 29. Qb4 {[%emt 0:01:41]} ({Don't go for} 29. Qxb7 $2 Qd2 30. Qb1 Qxe2 $19) 29... Qxb4 {[%emt 0:03:24]} 30. axb4 {[%emt 0:00:05][%cal Ba3b4,Bb4a5,Ba5a6][%mdl 4128] Endgame KRB-KRB} Bd5 {[%emt 0:00:05]} 31. f3 {[%emt 0:03:03]} Kf8 {[%emt 0:05:05]} 32. Kf2 {[%emt 0:00:13]} a5 $2 {[%emt 0:03:09] This costs Black the game.} (32... Be6 $16 {is a better defense.} 33. e4 Ke7) 33. e4 $18 {[%emt 0:01:19]} ({Don't play} 33. bxa5 Ke7 34. e4 Be6 $18) 33... Be6 {[%emt 0:00:06]} 34. bxa5 {[%emt 0:00:14]} Ra8 {[%emt 0:00:03] [#]} 35. c6 $1 {[%emt 0:01:31]} ({Not} 35. a6 bxa6 36. Ra1 Rc8 $16) 35... bxc6 {[%emt 0:00:03]} 36. a6 {[%emt 0:00:09] White is clearly winning.} Bd7 {[%emt 0:00:04]} 37. Ke3 {[%emt 0:02:30]} Ke7 {[%emt 0:00:29]} 38. Kd4 {[%emt 0:01:07]} Kd6 {[%emt 0:00:07]} 39. e5+ {[%emt 0:01:27]} Kc7 {[%emt 0:00:04]} 40. Kc5 {[%emt 0:00:08]} Re8 {[%emt 0:00:19] [#]} 41. f4 {[%emt 0:30:16]} f6 {[%emt 0:30:13]} 42. Rb1 {[%emt 0:02:12] White threatens Rb7+ and mate.} Bc8 {[%emt 0:02:53] Inhibits Rb7+.} 43. a7 {[%emt 0:00:54]} Bb7 {[%emt 0:00:24]} 44. Bf3 {[%emt 0:01:01]} (44. e6 $142 h5 45. f5) 44... Re7 {[%emt 0:00:47] [#]} 45. Rxb7+ $1 {[%emt 0:02:09][%mdl 512] Weighted Error Value: White=0.09 (flawless) /Black=0.33} 1-0